fUSD/lending_fUSD_20240720
["ID","MTS","AMOUNT","RATE_DAILY","PERIOD"]
[332690578,1721452268811,-500.0,0.00032876,14]
[332690579,1721452268821,-1253.47,0.00032876,14]
[332690580,1721452268831,-2010.33,0.00032876,14]
[332690581,1721452268840,-4422.6,0.00032876,14]
[332690582,1721452268849,-500.0,0.00032876,14]
[332690583,1721452268858,-515.38849137,0.00032876,14]
[332690584,1721452268868,-500.0,0.00032876,14]
[332690585,1721452268877,-500.0,0.00032876,14]
[332690586,1721452268887,-500.0,0.00032876,14]
[332690587,1721452268897,-500.0,0.00032876,14]
[332690588,1721452268906,-782.08,0.00032876,14]
[332690589,1721452268915,-500.0,0.00032876,14]
[332690590,1721452268925,-500.0,0.00032876,14]
[332690591,1721452268934,-500.0,0.00032876,14]
[332690592,1721452268943,-500.0,0.00032876,14]
[332690593,1721452268953,-3857.12,0.00032876,14]
[332690594,1721452268962,-500.0,0.00032876,14]
[332690595,1721452268972,-670.79,0.00032876,14]
[332690596,1721452268981,-500.0,0.00032876,14]
[332690597,1721452268990,-500.0,0.00032876,14]
[332690598,1721452268999,-738.12,0.00032876,14]
[332690599,1721452269009,-231.735013,0.00032876,14]
[332690600,1721452269018,-500.0,0.00032876,14]
[332690601,1721452269028,-500.0,0.00032876,14]
[332690602,1721452269111,-511.05,0.00032876,14]
[332690603,1721452269120,-500.0,0.00032876,14]
[332690604,1721452269130,-500.0,0.00032876,14]
[332690605,1721452269139,-500.0,0.00032876,14]
[332690606,1721452269149,-2474.15,0.00032876,14]
[332690607,1721452269158,-513.87901861,0.00032876,14]
[332690608,1721452269168,-2276.68,0.00032876,14]
[332690609,1721452269178,-1039.92,0.00032876,2]
[332690610,1721452269187,-500.0,0.00032876,14]
[332690611,1721452269197,-2869.88,0.00032876,14]
[332690612,1721452269206,-500.0,0.00032876,14]
[332690613,1721452269215,-500.0,0.00032876,14]
[332690614,1721452269225,-773.67,0.00032876,14]
[332690615,1721452269234,-935.74,0.00032876,14]
[332690616,1721452269243,-1504.33,0.00032876,14]
[332690617,1721452269253,-2544.71,0.00032876,14]
[332690618,1721452269262,-500.0,0.00032876,14]
[332690619,1721452269271,-100000.0,0.00032876,2]
[332690620,1721452269280,-207.96320877,0.00032876,14]
[332690621,1721452269289,-643.79,0.00032876,14]
[332690622,1721452269299,-464.68594625,0.00032876,14]
[332690623,1721452269308,-500.0,0.00032876,14]
[332690624,1721452269317,-1507.73,0.00032876,14]
[332690625,1721452269327,-502.00018379,0.00032876,14]
[332690626,1721452269336,-2587.33,0.00032876,14]
[332690627,1721452269346,-1314.27,0.00032876,14]
[332690628,1721452269355,-500.0,0.00032876,14]
[332690629,1721452269364,-500.0,0.00032876,14]
[332690630,1721452269373,-498.03444507,0.00032876,14]
[332690631,1721452269383,-500.0,0.00032876,14]
[332690632,1721452269392,-511.35293204,0.00032876,14]
[332690633,1721452269402,-166.9,0.00032877,2]
[332690634,1721452269413,-153.49,0.00032877,2]
[332690635,1721452269422,-807.21423768,0.000329,30]
[332690636,1721452269431,-186.7387317,0.00032916,10]
[332690637,1721452269442,-151.5680096,0.0003295,7]
[332690638,1721452269451,-151.7227518,0.00032988,7]
[332690639,1721452269460,-1530.0,0.00033,30]
[332690640,1721452269470,-217.07,0.00033,8]
[332690641,1721452269480,-600.0,0.00033,2]
[332690642,1721452269490,-977.75,0.00033037,30]
[332690643,1721452269500,-977.75,0.00033037,30]
[332690644,1721452269510,-152.65155588,0.00033042,7]
[332690645,1721452269519,-203.0,0.0003307,2]
[332690646,1721452269528,-151.7227518,0.00033082,7]
[332690647,1721452269537,-154.15138605,0.00033109,7]
[332690648,1721452269547,-582.6996846,0.00033127,2]
[332690649,1721452269557,-6905.3058349,0.00033127,2]
[332690650,1721452269567,-345.634887,0.00033127,2]
[332690651,1721452269577,-7634.9487688,0.00033127,2]
[332690652,1721452269586,-346.7963731,0.00033127,2]
[332690653,1721452269599,-152.88663034,0.00033138,7]
[332690654,1721452269609,-295.04671023,0.0003315,14]
[332690655,1721452269618,-526.02131292,0.0003315,14]
[332690656,1721452269627,-507.49087299,0.0003315,14]
[332690657,1721452269638,-500.0,0.0003315,14]
[332690658,1721452269648,-500.0,0.0003315,14]
[332690659,1721452269657,-492.43255188,0.0003315,14]
[332690660,1721452269668,-500.0,0.0003315,14]
[332690661,1721452269678,-508.82909252,0.0003315,14]
[332690662,1721452269688,-172.58325984,0.0003315,14]
[332690663,1721452269697,-500.0,0.0003315,14]
[332690664,1721452269706,-500.0,0.0003315,14]
[332690665,1721452269716,-512.9016968,0.0003315,14]
[332690666,1721452269726,-500.0,0.0003315,14]
[332690667,1721452269735,-500.0,0.0003315,14]
[332690668,1721452269745,-500.0,0.0003315,14]
[332690669,1721452269754,-500.0,0.0003315,14]
[332690670,1721452269764,-1022.34,0.0003315,14]
[332690671,1721452269775,-500.0,0.0003315,14]
[332690672,1721452269784,-210.08521553,0.0003315,14]
[332690673,1721452269794,-500.0,0.0003315,14]
[332690674,1721452269803,-500.0,0.0003315,14]
[332690675,1721452269812,-667.24,0.0003315,14]
[332690676,1721452269822,-500.0,0.0003315,14]
[332690677,1721452269832,-703.85,0.0003315,14]
[332690678,1721452269842,-534.64065254,0.0003315,14]
[332690679,1721452269852,-500.0,0.0003315,14]
[332690680,1721452269862,-500.0,0.0003315,14]
[332690681,1721452269871,-500.0,0.0003315,14]
[332690682,1721452269881,-224.63727842,0.0003315,14]
[332690683,1721452269891,-1004.77,0.0003315,14]
[332690684,1721452269900,-500.0,0.0003315,14]
[332690685,1721452269910,-500.0,0.0003315,14]
[332690686,1721452269919,-500.0,0.0003315,14]
[332690687,1721452269929,-500.0,0.0003315,14]
[332690688,1721452269939,-500.0,0.0003315,14]
[332690689,1721452269948,-755.54,0.0003315,14]
[332690690,1721452269958,-624.11,0.0003315,14]
[332690691,1721452269967,-500.0,0.0003315,14]
[332690692,1721452269976,-500.0,0.0003315,14]
[332690693,1721452269986,-500.0,0.0003315,14]
[332690694,1721452269995,-514.527279,0.0003315,14]
[332690695,1721452270004,-500.0,0.0003315,14]
[332690696,1721452270014,-500.0,0.0003315,14]
[332690697,1721452270023,-500.0,0.0003315,14]
[332690698,1721452270033,-500.0,0.0003315,14]
[332690699,1721452270043,-500.0,0.0003315,14]
[332690700,1721452270052,-500.0,0.0003315,14]
[332690701,1721452270062,-500.0,0.0003315,14]
[332690702,1721452270071,-500.0,0.0003315,14]
[332690703,1721452270083,-500.0,0.0003315,14]
[332690704,1721452270092,-1361.11,0.0003315,14]
[332690705,1721452270102,-303.5126159,0.0003315,14]
[332690706,1721452270111,-500.0,0.0003315,14]
[332690707,1721452270121,-500.0,0.0003315,14]
[332690708,1721452270130,-500.0,0.0003315,14]
[332690709,1721452270139,-500.0,0.0003315,14]
[332690710,1721452270150,-500.0,0.0003315,14]
[332690711,1721452270162,-516.36214536,0.0003315,14]
[332690712,1721452270171,-500.0,0.0003315,14]
[332690713,1721452270181,-504.98131691,0.0003315,14]
[332690714,1721452270190,-500.0,0.0003315,14]
[332690715,1721452270200,-500.0,0.0003315,14]
[332690716,1721452270211,-500.0,0.0003315,14]
[332690717,1721452270222,-500.0,0.0003315,14]
[332690718,1721452270233,-500.0,0.0003315,14]
[332690719,1721452270242,-500.0,0.0003315,14]
[332690720,1721452270252,-905.48,0.0003315,14]
[332690721,1721452270262,-636.07,0.0003315,14]
[332690722,1721452270271,-575.11,0.0003315,14]
[332690723,1721452270281,-505.28411055,0.0003315,14]
[332690724,1721452270291,-500.0,0.0003315,14]
[332690725,1721452270300,-977.86,0.0003315,14]
[332690726,1721452270309,-539.28,0.0003315,14]
[332690727,1721452270318,-1018.11,0.0003315,14]
[332690728,1721452270327,-788.52,0.0003315,14]
[332690729,1721452270336,-500.0,0.0003315,14]
[332690730,1721452270345,-500.0,0.0003315,14]
[332690731,1721452270355,-500.0,0.0003315,14]
[332690732,1721452270364,-500.0,0.0003315,14]
[332690733,1721452270373,-663.27,0.0003315,14]
[332690734,1721452270382,-500.0,0.0003315,14]
[332690735,1721452270391,-500.0,0.0003315,14]
[332690736,1721452270401,-500.0,0.0003315,14]
[332690737,1721452270410,-505.43930336,0.0003315,14]
[332690738,1721452270419,-500.0,0.0003315,14]
[332690739,1721452270428,-500.0,0.0003315,14]
[332690740,1721452270438,-505.89689048,0.0003315,14]
[332690741,1721452270447,-500.0,0.0003315,14]
[332690742,1721452270456,-500.0,0.0003315,14]
[332690743,1721452270465,-226.21,0.0003315,14]
[332690744,1721452270475,-500.0,0.0003315,14]
[332690745,1721452270484,-817.64,0.0003315,14]
[332690746,1721452270493,-500.0,0.0003315,14]
[332690747,1721452270502,-519.64430816,0.0003315,14]
[332690748,1721452270511,-600.63,0.0003315,14]
[332690749,1721452270520,-215.795442,0.0003315,7]
[332690750,1721452270529,-923.07,0.0003315,14]
[332690751,1721452270539,-640.98775288,0.0003315,3]
[332690752,1721452270547,-215.795442,0.0003315,7]
[332690753,1721452270557,-500.0,0.0003315,14]
[332690754,1721452270566,-500.0,0.0003315,14]
[332690755,1721452270575,-500.0,0.0003315,14]
[332690756,1721452270586,-520.79,0.0003315,14]
[332690757,1721452270602,-500.0,0.0003315,14]
[332690758,1721452270612,-500.0,0.0003315,14]
[332690759,1721452270621,-500.0,0.0003315,14]
[332690760,1721452270631,-518.92979667,0.0003315,14]
[332690761,1721452270641,-500.0,0.0003315,14]
[332690762,1721452270651,-515.74419472,0.0003315,14]
[332690763,1721452270661,-500.0,0.0003315,14]
[332690764,1721452270671,-500.0,0.0003315,14]
[332690765,1721452270680,-500.0,0.0003315,14]
[332690766,1721452270689,-500.0,0.0003315,14]
[332690767,1721452270698,-500.0,0.0003315,14]
[332690768,1721452270707,-500.0,0.0003315,14]
[332690769,1721452270716,-500.0,0.0003315,14]
[332690770,1721452270725,-554.46,0.0003315,14]
[332690771,1721452270735,-512.09267535,0.0003315,14]
[332690772,1721452270744,-500.0,0.0003315,14]
[332690773,1721452270753,-500.0,0.0003315,14]
[332690774,1721452270762,-563.48,0.0003315,14]
[332690775,1721452270771,-509.46133419,0.0003315,14]
[332690776,1721452270783,-500.0,0.0003315,14]
[332690777,1721452270793,-500.0,0.0003315,14]
[332690778,1721452270802,-509.29429948,0.0003315,14]
[332690779,1721452270811,-500.0,0.0003315,14]
[332690780,1721452270821,-500.0,0.0003315,14]
[332690781,1721452270831,-500.0,0.0003315,14]
[332690782,1721452270841,-506.49439669,0.0003315,14]
[332690783,1721452270850,-520.57300531,0.0003315,14]
[332690784,1721452270861,-362.45190301,0.0003315,14]
[332690785,1721452270870,-689.0,0.0003315,14]
[332690786,1721452270880,-500.0,0.0003315,14]
[332690787,1721452270889,-513.4243682,0.0003315,14]
[332690788,1721452270899,-500.0,0.0003315,14]
[332690789,1721452270908,-500.0,0.0003315,14]
[332690790,1721452270917,-500.0,0.0003315,14]
[332690791,1721452270927,-500.0,0.0003315,14]
[332690792,1721452270936,-500.0,0.0003315,14]
[332690793,1721452270946,-500.0,0.0003315,14]
[332690794,1721452270955,-500.0,0.0003315,14]
[332690795,1721452270965,-500.0,0.0003315,14]
[332690796,1721452270973,-512.45244761,0.0003315,14]
[332690797,1721452270982,-500.0,0.0003315,14]
[332690798,1721452270991,-500.0,0.0003315,14]
[332690799,1721452271000,-500.0,0.0003315,14]
[332690800,1721452271009,-500.0,0.0003315,14]
[332690801,1721452271018,-500.0,0.0003315,14]
[332690802,1721452271027,-768.0,0.0003315,14]
[332690803,1721452271036,-507.64008362,0.0003315,14]
[332690804,1721452271045,-500.0,0.0003315,14]
[332690805,1721452271054,-486.09611196,0.0003315,14]
[332690806,1721452271063,-824.05,0.0003315,14]
[332690807,1721452271072,-500.0,0.0003315,14]
[332690808,1721452271082,-500.0,0.0003315,14]
[332690809,1721452271091,-741.81,0.0003315,14]
[332690810,1721452271100,-500.0,0.0003315,14]
[332690811,1721452271109,-500.0,0.0003315,14]
[332690812,1721452271118,-642.24,0.0003315,14]
[332690813,1721452271128,-500.0,0.0003315,14]
[332690814,1721452271138,-528.79489685,0.0003315,14]
[332690815,1721452271149,-500.0,0.0003315,14]
[332690816,1721452271159,-787.66,0.0003315,14]
[332690817,1721452271170,-584.73,0.0003315,14]
[332690818,1721452271180,-384.33644962,0.0003315,14]
[332690819,1721452271190,-500.0,0.0003315,14]
[332690820,1721452271201,-500.0,0.0003315,14]
[332690821,1721452271212,-500.0,0.0003315,14]
[332690822,1721452271222,-766.73,0.0003315,14]
[332690823,1721452271232,-516.86127743,0.0003315,14]
[332690824,1721452271243,-500.0,0.0003315,14]
[332690825,1721452271253,-684.63,0.0003315,14]
[332690826,1721452271264,-511.29082224,0.0003315,14]
[332690827,1721452271274,-151.0,0.0003315,7]
[332690828,1721452271284,-569.96280215,0.0003315,14]
[332690829,1721452271294,-500.0,0.0003315,14]
[332690830,1721452271303,-500.0,0.0003315,14]
[332690831,1721452271312,-507.36,0.0003315,14]
[332690832,1721452271322,-500.0,0.0003315,14]
[332690833,1721452271331,-484.25948308,0.0003315,14]
[332690834,1721452271340,-500.0,0.0003315,14]
[332690835,1721452271350,-500.0,0.0003315,14]
[332690836,1721452271359,-500.0,0.0003315,14]
[332690837,1721452271369,-500.0,0.0003315,14]
[332690838,1721452271378,-500.0,0.0003315,14]
[332690839,1721452271388,-503.96855212,0.0003315,14]
[332690840,1721452271398,-500.0,0.0003315,14]
[332690841,1721452271407,-508.27680879,0.0003315,14]
[332690842,1721452271417,-500.0,0.0003315,14]
[332690843,1721452271426,-500.0,0.0003315,14]
[332690844,1721452271436,-500.0,0.0003315,14]
[332690845,1721452271446,-500.0,0.0003315,14]
[332690846,1721452271456,-512.75993085,0.0003315,14]
[332690847,1721452271465,-500.0,0.0003315,14]
[332690848,1721452271475,-500.0,0.0003315,14]
[332690849,1721452271484,-500.0,0.0003315,14]
[332690850,1721452271494,-500.0,0.0003315,14]
[332690851,1721452271504,-510.30768642,0.0003315,14]
[332690852,1721452271513,-258.49334905,0.0003315,14]
[332690853,1721452271524,-500.0,0.0003315,14]
[332690854,1721452271533,-500.0,0.0003315,14]
[332690855,1721452271543,-773.96,0.0003315,14]
[332690856,1721452271553,-500.0,0.0003315,14]
[332690857,1721452271562,-500.0,0.0003315,14]
[332690858,1721452271572,-500.0,0.0003315,14]
[332690859,1721452271581,-532.87453407,0.0003315,14]
[332690860,1721452271594,-375.46135499,0.0003315,14]
[332690861,1721452271605,-887.87,0.0003315,14]
[332690862,1721452271615,-500.0,0.0003315,14]
[332690863,1721452271624,-151.0,0.0003315,7]
[332690864,1721452271635,-500.0,0.0003315,14]
[332690865,1721452271644,-500.0,0.0003315,14]
[332690866,1721452271653,-500.0,0.0003315,14]
[332690867,1721452271665,-281.283124,0.0003315,7]
[332690868,1721452271674,-528.32673051,0.0003315,14]
[332690869,1721452271684,-500.0,0.0003315,14]
[332690870,1721452271693,-500.0,0.0003315,14]
[332690871,1721452271703,-524.39730041,0.0003315,14]
[332690872,1721452271712,-576.39,0.0003315,14]
[332690873,1721452271721,-500.0,0.0003315,14]
[332690874,1721452271731,-931.48,0.0003315,14]
[332690875,1721452271740,-500.0,0.0003315,14]
[332690876,1721452271750,-500.0,0.0003315,14]
[332690877,1721452271759,-151.0,0.0003315,7]
[332690878,1721452271769,-500.0,0.0003315,14]
[332690879,1721452271778,-500.0,0.0003315,14]
[332690880,1721452271788,-545.9,0.0003315,14]
[332690881,1721452271797,-804.97,0.0003315,14]
[332690882,1721452271807,-505.49033392,0.0003315,14]
[332690883,1721452271816,-500.0,0.0003315,14]
[332690884,1721452271826,-500.0,0.0003315,14]
[332690885,1721452271835,-2058.6,0.0003315,14]
[332690886,1721452271845,-500.0,0.0003315,14]
[332690887,1721452271855,-500.0,0.0003315,14]
[332690888,1721452271866,-500.0,0.0003315,14]
[332690889,1721452271876,-510.61508801,0.0003315,14]
[332690890,1721452271886,-672.54,0.0003315,14]
[332690891,1721452271896,-1597.61,0.0003315,14]
[332690892,1721452271906,-500.0,0.0003315,14]
[332690893,1721452271915,-500.0,0.0003315,14]
[332690894,1721452271926,-151.0,0.0003315,7]
[332690895,1721452271935,-500.0,0.0003315,14]
[332690896,1721452271945,-500.0,0.0003315,14]
[332690897,1721452271954,-500.0,0.0003315,14]
[332690898,1721452271964,-500.0,0.0003315,14]
[332690899,1721452271974,-1557.77,0.0003315,14]
[332690900,1721452271983,-1136.23,0.0003315,14]
[332690901,1721452271993,-500.0,0.0003315,14]
[332690902,1721452272002,-500.0,0.0003315,14]
[332690903,1721452272012,-850.4,0.0003315,14]
[332690904,1721452272021,-1349.57,0.0003315,14]
[332690905,1721452272031,-500.0,0.0003315,14]
[332690906,1721452272041,-500.0,0.0003315,14]
[332690907,1721452272051,-615.63,0.0003315,14]
[332690908,1721452272061,-500.0,0.0003315,14]
[332690909,1721452272070,-500.0,0.0003315,14]
[332690910,1721452272081,-502.39220038,0.0003315,14]
[332690911,1721452272091,-585.37,0.0003315,14]
[332690912,1721452272100,-500.0,0.0003315,14]
[332690913,1721452272110,-1925.0,0.0003315,14]
[332690914,1721452272120,-500.0,0.0003315,14]
[332690915,1721452272131,-500.0,0.0003315,14]
[332690916,1721452272141,-500.0,0.0003315,14]
[332690917,1721452272151,-500.0,0.0003315,14]
[332690918,1721452272160,-500.0,0.0003315,14]
[332690919,1721452272170,-500.0,0.0003315,14]
[332690920,1721452272180,-633.15,0.0003315,14]
[332690921,1721452272190,-500.0,0.0003315,14]
[332690922,1721452272200,-500.0,0.0003315,14]
[332690923,1721452272209,-500.0,0.0003315,14]
[332690924,1721452272219,-500.0,0.0003315,14]
[332690925,1721452272229,-513.51284985,0.0003315,14]
[332690926,1721452272239,-1477.09,0.0003315,14]
[332690927,1721452272249,-504.51492516,0.0003315,14]
[332690928,1721452272259,-500.0,0.0003315,14]
[332690929,1721452272269,-955.64,0.0003315,14]
[332690930,1721452272279,-703.79,0.0003315,14]
[332690931,1721452272290,-500.0,0.0003315,14]
[332690932,1721452272300,-500.0,0.0003315,14]
[332690933,1721452272310,-500.0,0.0003315,14]
[332690934,1721452272320,-1257.46,0.0003315,14]
[332690935,1721452272330,-502.13431514,0.0003315,14]
[332690936,1721452272340,-500.0,0.0003315,14]
[332690937,1721452272350,-500.0,0.0003315,14]
[332690938,1721452272360,-500.0,0.0003315,14]
[332690939,1721452272370,-500.0,0.0003315,14]
[332690940,1721452272380,-1259.58,0.0003315,14]
[332690941,1721452272390,-500.0,0.0003315,2]
[332690942,1721452272400,-1144.31,0.0003315,14]
[332690943,1721452272410,-808.34,0.0003315,14]
[332690944,1721452272419,-539.30659049,0.0003315,14]
[332690945,1721452272429,-500.0,0.0003315,14]
[332690946,1721452272439,-1237.13,0.0003315,14]
[332690947,1721452272448,-500.0,0.0003315,14]
[332690948,1721452272458,-500.0,0.0003315,14]
[332690949,1721452272468,-500.0,0.0003315,14]
[332690950,1721452272478,-500.0,0.0003315,14]
[332690951,1721452272488,-500.0,0.0003315,14]
[332690952,1721452272498,-741.83,0.0003315,14]
[332690953,1721452272508,-500.0,0.0003315,14]
[332690954,1721452272518,-500.0,0.0003315,14]
[332690955,1721452272528,-688.35,0.0003315,14]
[332690956,1721452272538,-500.0,0.0003315,14]
[332690957,1721452272548,-500.0,0.0003315,14]
[332690958,1721452272558,-809.96,0.0003315,14]
[332690959,1721452272568,-1690.39,0.0003315,14]
[332690960,1721452272578,-500.0,0.0003315,14]
[332690961,1721452272591,-1144.57,0.0003315,14]
[332690962,1721452272601,-500.0,0.0003315,14]
[332690963,1721452272611,-500.0,0.0003315,14]
[332690964,1721452272622,-500.0,0.0003315,14]
[332690965,1721452272632,-502.67511119,0.0003315,14]
[332690966,1721452272643,-500.0,0.0003315,14]
[332690967,1721452272653,-500.0,0.0003315,14]
[332690968,1721452272667,-1161.81,0.0003315,14]
[332690969,1721452272676,-500.0,0.0003315,14]
[332690970,1721452272687,-500.0,0.0003315,14]
[332690971,1721452272697,-505.96050928,0.0003315,14]
[332690972,1721452272707,-1958.12,0.0003315,14]
[332690973,1721452272718,-853.53,0.0003315,14]
[332690974,1721452272728,-750.64,0.0003315,14]
[332690975,1721452272739,-500.0,0.0003315,14]
[332690976,1721452272749,-500.0,0.0003315,14]
[332690977,1721452272759,-2258.69,0.0003315,14]
[332690978,1721452272769,-500.0,0.0003315,14]
[332690979,1721452272779,-500.0,0.0003315,14]
[332690980,1721452272789,-500.0,0.0003315,14]
[332690981,1721452272799,-500.0,0.0003315,14]
[332690982,1721452272808,-500.0,0.0003315,14]
[332690983,1721452272818,-500.0,0.0003315,14]
[332690984,1721452272828,-500.0,0.0003315,14]
[332690985,1721452272839,-500.0,0.0003315,14]
[332690986,1721452272849,-500.0,0.0003315,14]
[332690987,1721452272858,-500.0,0.0003315,14]
[332690988,1721452272869,-500.0,0.0003315,14]
[332690989,1721452272879,-500.0,0.0003315,14]
[332690990,1721452272888,-500.0,0.0003315,14]
[332690991,1721452272899,-512.10579728,0.0003315,14]
[332690992,1721452272909,-569.38,0.0003315,14]
[332690993,1721452272919,-1031.87,0.0003315,14]
[332690994,1721452272928,-500.0,0.0003315,14]
[332690995,1721452272939,-500.0,0.0003315,14]
[332690996,1721452272949,-500.0,0.0003315,14]
[332690997,1721452272959,-500.0,0.0003315,14]
[332690998,1721452272969,-500.0,0.0003315,14]
[332690999,1721452272979,-835.76,0.0003315,14]
[332691000,1721452272988,-1061.35,0.0003315,14]
[332691001,1721452272998,-500.0,0.0003315,14]
[332691002,1721452273008,-500.0,0.0003315,14]
[332691003,1721452273019,-500.0,0.0003315,14]
[332691004,1721452273028,-500.0,0.0003315,14]
[332691005,1721452273038,-500.0,0.0003315,14]
[332691006,1721452273048,-500.0,0.0003315,14]
[332691007,1721452273057,-500.0,0.0003315,14]
[332691008,1721452273068,-1376.73,0.0003315,14]
[332691009,1721452273078,-1119.4,0.0003315,14]
[332691010,1721452273090,-500.0,0.0003315,14]
[332691011,1721452273102,-500.0,0.0003315,14]
[332691012,1721452273112,-500.0,0.0003315,14]
[332691013,1721452273124,-500.0,0.0003315,14]
[332691014,1721452273133,-634.42,0.0003315,14]
[332691015,1721452273143,-500.0,0.0003315,14]
[332691016,1721452273153,-500.0,0.0003315,14]
[332691017,1721452273164,-501.94178427,0.0003315,14]
[332691018,1721452273174,-500.0,0.0003315,14]
[332691019,1721452273184,-501.13076642,0.0003315,14]
[332691020,1721452273194,-1203.665083,0.0003315,7]
[332691021,1721452273205,-500.0,0.0003315,14]
[332691022,1721452273215,-937.2,0.0003315,14]
[332691023,1721452273224,-500.0,0.0003315,14]
[332691024,1721452273236,-500.0,0.0003315,14]
[332691025,1721452273248,-500.0,0.0003315,14]
[332691026,1721452273260,-500.0,0.0003315,14]
[332691027,1721452273271,-151.0,0.0003315,7]
[332691028,1721452273281,-1180.46,0.0003315,14]
[332691029,1721452273290,-1095.19,0.0003315,14]
[332691030,1721452273301,-1203.665083,0.0003315,7]
[332691031,1721452273311,-509.33915883,0.0003315,14]
[332691032,1721452273321,-500.0,0.0003315,14]
[332691033,1721452273331,-511.14734267,0.0003315,14]
[332691034,1721452273341,-500.0,0.0003315,14]
[332691035,1721452273351,-151.0,0.0003315,7]
[332691036,1721452273567,-500.0,0.0003315,14]
[332691037,1721452273577,-500.0,0.0003315,14]
[332691038,1721452273590,-945.13,0.0003315,14]
[332691039,1721452273601,-1149.74,0.0003315,14]
[332691040,1721452273610,-500.0,0.0003315,14]
[332691041,1721452273619,-500.0,0.0003315,14]
[332691042,1721452273629,-500.0,0.0003315,14]
[332691043,1721452273639,-500.0,0.0003315,14]
[332691044,1721452273648,-170.986568,0.0003315,7]
[332691045,1721452273659,-518.28861961,0.0003315,14]
[332691046,1721452273669,-500.0,0.0003315,14]
[332691047,1721452273679,-500.0,0.0003315,14]
[332691048,1721452273688,-509.73735457,0.0003315,14]
[332691049,1721452273697,-514.45,0.0003315,14]
[332691050,1721452273707,-1429.72,0.0003315,14]
[332691051,1721452273716,-1610.4,0.0003315,14]
[332691052,1721452273725,-500.0,0.0003315,14]
[332691053,1721452273735,-506.58148772,0.0003315,14]
[332691054,1721452273744,-500.81720189,0.0003315,14]
[332691055,1721452273753,-170.986568,0.0003315,7]
[332691056,1721452273763,-500.0,0.0003315,14]
[332691057,1721452273772,-500.0,0.0003315,14]
[332691058,1721452273782,-503.04332303,0.0003315,14]
[332691059,1721452273791,-500.0,0.0003315,14]
[332691060,1721452273801,-500.0,0.0003315,14]
[332691061,1721452273810,-500.0,0.0003315,14]
[332691062,1721452273819,-500.0,0.0003315,14]
[332691063,1721452273829,-500.0,0.0003315,14]
[332691064,1721452273839,-1148.04,0.0003315,14]
[332691065,1721452273848,-500.0,0.0003315,14]
[332691066,1721452273857,-500.0,0.0003315,14]
[332691067,1721452273866,-1507.35,0.0003315,14]
[332691068,1721452273875,-1028.57,0.0003315,14]
[332691069,1721452273884,-500.0,0.0003315,14]
[332691070,1721452273894,-519.12499857,0.0003315,14]
[332691071,1721452273903,-509.53447652,0.0003315,14]
[332691072,1721452273913,-500.0,0.0003315,14]
[332691073,1721452273922,-500.0,0.0003315,14]
[332691074,1721452273932,-726.07,0.0003315,14]
[332691075,1721452273942,-500.0,0.0003315,14]
[332691076,1721452273951,-500.0,0.0003315,14]
[332691077,1721452273961,-500.0,0.0003315,14]